{"text_format":"1","workbook":"xlsx","n_sheets":1,"sheets":["Zeiterfassung Baulohn"],"not_rendered":{"charts":0,"images":2,"macros":1,"external_links":0,"defined_names":1,"comments":0,"pivot_tables":0},"unopened":[],"bounds":{"document_bytes":16777216,"sheet_cells":100000,"rows_first":2000,"rows_last":500,"rows_between":2000,"halvings":0,"cell_chars":16384,"cell_head_chars":4096},"cells_cut":0,"cells_raw":0,"read":"whole","date_system":"1900"}

{"sheet":"Zeiterfassung Baulohn","index":0,"n_rows":41,"n_cols":15,"rows_kept":41,"cut":false,"hidden":false,"merged":[[7,14,8,14],[3,3,3,5],[4,3,4,5],[5,3,5,5],[3,7,5,8],[7,9,8,9],[7,10,8,10],[7,11,8,11],[7,12,8,12],[7,13,8,13],[7,3,7,4],[7,6,8,6],[7,2,8,2],[7,1,8,1],[7,5,8,5],[7,7,8,7],[7,8,8,8]]}
[]
[null,"Zeiterfassung Baulohn"]
[]
[null,"Name Firma:",null,null,null,null,null,"Unterschrift \ndes Arbeitnehmers:"]
[null,"Name Arbeitnehmer:"]
[null,"Erster Tag des Monats:",null,"2024-01-01"]
[]
[null,"Datum","Sollzeit","Arbeitszeit",null,"Arbeits-\nstunden (1)","Urlaubs-\nstunden (U)","Krankheits-\nstunden (K)","Feiertrags-\nstunden (FE)","KuG\n(KU)","Sonstige\nStunden","Summe",null,"Baustelle","Bemerkung"]
[null,null,null,"Beginn","Ende"]
[null,{"$f":"ERSTERTAG","v":"2024-01-01"},null,null,null,null,null,null,null,null,null,{"$f":"IF(SUM(F10:K10),SUM(F10:K10),\"\")","v":""}]
[null,{"$f":"IF(B10<>\"\",IF(MONTH(ERSTERTAG)=MONTH(B10+1),B10+1,\"\"),\"\")","v":"2024-01-02"},null,null,null,null,null,null,null,null,null,{"$f":"IF(SUM(F11:K11),SUM(F11:K11),\"\")","v":""}]
[null,"2024-01-03",null,null,null,null,null,null,null,null,null,""]
[null,"2024-01-04",null,null,null,null,null,null,null,null,null,""]
[null,"2024-01-05",null,null,null,null,null,null,null,null,null,""]
[null,"2024-01-06",null,null,null,null,null,null,null,null,null,""]
[null,"2024-01-07",null,null,null,null,null,null,null,null,null,""]
[null,"2024-01-08",null,null,null,null,null,null,null,null,null,""]
[null,"2024-01-09",null,null,null,null,null,null,null,null,null,""]
[null,"2024-01-10",null,null,null,null,null,null,null,null,null,""]
[null,"2024-01-11",null,null,null,null,null,null,null,null,null,""]
[null,"2024-01-12",null,null,null,null,null,null,null,null,null,""]
[null,"2024-01-13",null,null,null,null,null,null,null,null,null,""]
[null,"2024-01-14",null,null,null,null,null,null,null,null,null,""]
[null,"2024-01-15",null,null,null,null,null,null,null,null,null,""]
[null,"2024-01-16",null,null,null,null,null,null,null,null,null,""]
[null,"2024-01-17",null,null,null,null,null,null,null,null,null,""]
[null,"2024-01-18",null,null,null,null,null,null,null,null,null,""]
[null,"2024-01-19",null,null,null,null,null,null,null,null,null,""]
[null,"2024-01-20",null,null,null,null,null,null,null,null,null,""]
[null,"2024-01-21",null,null,null,null,null,null,null,null,null,""]
[null,"2024-01-22",null,null,null,null,null,null,null,null,null,""]
[null,"2024-01-23",null,null,null,null,null,null,null,null,null,""]
[null,"2024-01-24",null,null,null,null,null,null,null,null,null,""]
[null,"2024-01-25",null,null,null,null,null,null,null,null,null,""]
[null,"2024-01-26",null,null,null,null,null,null,null,null,null,""]
[null,"2024-01-27",null,null,null,null,null,null,null,null,null,""]
[null,"2024-01-28",null,null,null,null,null,null,null,null,null,""]
[null,"2024-01-29",null,null,null,null,null,null,null,null,null,""]
[null,"2024-01-30",null,null,null,null,null,null,null,null,null,""]
[null,"2024-01-31",null,null,null,null,null,null,null,null,null,""]
[null,"SUMMEN",{"$f":"IF(SUM(C10:C40),SUM(C10:C40),\"\")","v":""},null,null,{"$f":"IF(SUM(F10:F40),SUM(F10:F40),\"\")","v":""},"","","","","",""]